[Event "44th Chess Olympiad Open 2022"]
[Site "Chennai"]
[Date "2022.08.03"]
[Round "6.49"]
[White "Wong, Yinn Long"]
[Black "Rongwane, Gomolemo"]
[Result "1-0"]
[WhiteElo "2381"]
[BlackElo "2033"]
[Annotator "TA"]
[PlyCount "149"]
[EventDate "2022.??.??"]
[TimeControl "60"]

{[%evp 9,149,29,26,20,29,22,19,16,41,36,41,33,85,87,78,69,79,79,77,67,112,62,
85,50,64,0,0,0,20,31,68,-126,43,38,79,48,131,91,86,89,91,80,79,29,112,52,52,52,
54,52,53,54,52,74,191,220,194,193,233,214,272,224,424,414,369,388,309,175,954,
710,1054,1060,980,955,1177,1039,911,779,657,222,255,258,229,241,225,218,336,
336,320,325,325,325,325,322,304,301,360,352,401,406,389,382,427,427,456,452,
437,452,493,493,456,456,785,427,785,778,5102,419,419,419,607,455,485,190,413,
319,427,420,412,412,410,406,399,399,438,438,482,467,29981,419,29987,29986]} 1.
e4 {[%emt 0:00:12]} e5 {[%emt 0:00:36]} 2. Nf3 {[%emt 0:00:20]} Nc6 {[%emt 0:
00:00]} 3. Nc3 {[%emt 0:00:40]} Nf6 {[%emt 0:00:17]} 4. a3 {[%emt 0:00:23]} d6
{[%emt 0:02:38]} 5. d4 {[%emt 0:00:13]} Be7 {[%emt 0:02:44]} 6. Bb5 {[%emt 0:
00:00] C47: Scotch Four Knights and Four Knights with 4 g3.} Bd7 {[%emt 0:00:
00]} 7. d5 {[%emt 0:06:56]} Nb8 {[%emt 0:00:22]} 8. Be2 {[%emt 0:03:19] The
position is equal.} Bg4 {[%emt 0:05:18] [#]} 9. h3 $146 {[%emt 0:01:49]} ({
Predecessor:} 9. O-O O-O 10. Nd2 Bxe2 11. Nxe2 Nfd7 12. c4 g6 13. b4 a5 14. Bb2
b6 15. Qc2 Bg5 16. Nb3 {1-0 (32) Petrov,M (2455)-Managadze,N (2428) Nikaia 2002
}) 9... Bh5 {[%emt 0:00:11]} 10. Be3 {[%emt 0:04:50]} O-O {[%emt 0:02:09]} (
10... c6 $14) 11. g4 $16 {[%emt 0:01:53]} Bg6 {[%emt 0:00:11]} 12. Nd2 {
[%emt 0:00:12]} Nfd7 {[%emt 0:03:41]} 13. Nf1 {[%emt 0:02:06]} c6 {[%emt 0:00:
00]} 14. Qd2 {[%emt 0:04:11][%cal Yh3h4]} Nb6 {[%emt 0:07:08]} 15. Ng3 {
[%emt 0:02:31]} (15. h4 $16) 15... N8d7 $14 {[%emt 0:00:54]} 16. O-O-O {
[%emt 0:06:31]} (16. dxc6 {is more complex.} bxc6 17. h4 Bxh4 18. Nf5) 16...
Rc8 {[%emt 0:07:58]} 17. b3 {[%emt 0:09:46]} (17. f3 $14) 17... cxd5 $11 {
[%emt 0:05:18]} 18. exd5 {[%emt 0:00:08]} Qc7 {[%emt 0:19:06]} 19. Kb2 {
[%emt 0:00:36]} Bh4 {[%emt 0:06:03]} 20. Rc1 $2 {[%emt 0:04:02] [#]} (20. Bd3
$14 {stays ahead.}) 20... Bxg3 $2 {[%emt 0:06:58]} (20... Qxc3+ $1 $17 21. Qxc3
Rxc3 22. Kxc3 Nxd5+ 23. Kd2 Nxe3 24. Kxe3 Bg5+ 25. Kf3 Bxc1 26. Rxc1 Rc8) 21.
fxg3 {[%emt 0:00:39]} (21. Nb5 $5 {[%cal Rb5c7]} Qb8 22. fxg3 $11) 21... Nc5 {
[%emt 0:00:10]} 22. Rhf1 {[%emt 0:06:18]} a6 {[%emt 0:00:00]} (22... Nbd7 $14)
23. h4 {[%emt 0:00:28]} Ne4 {[%emt 0:00:46]} 24. Nxe4 {[%emt 0:00:22]} Bxe4 {
[%emt 0:00:22]} 25. c4 {[%emt 0:02:55]} Nd7 {[%emt 0:00:00]} 26. h5 {[%emt 0:
05:34]} (26. g5 $16) 26... a5 {[%emt 0:02:23]} (26... h6 $11 {remains equal.})
27. h6 {[%emt 0:09:27]} (27. g5 $1 $16) 27... Nc5 $14 {[%emt 0:02:32]} 28. hxg7
{[%emt 0:00:30]} Rfe8 {[%emt 0:00:24]} 29. b4 {[%emt 0:06:10]} axb4 {[%emt 0:
01:58]} 30. axb4 {[%emt 0:00:45] The board is on fire.} Nd7 {[%emt 0:04:01]}
31. c5 $36 {[%emt 0:10:20] White is really pushing.} Bg6 {[%emt 0:01:06] White
leaves nothing to chance now.} (31... dxc5 $16 32. Bxc5 b6) 32. c6 $18 {
[%emt 0:01:28]} bxc6 {[%emt 0:01:35]} 33. Rxc6 {[%emt 0:00:03]} (33. dxc6 Nb6
$16) 33... Qb8 {[%emt 0:00:22]} 34. Rfc1 {[%emt 0:01:10]} Nf6 {[%emt 0:03:04]}
35. Ba6 {[%emt 0:02:45][%cal Rc6c8] Active counter play!} Rxc6 {[%emt 0:02:40]}
(35... Rcd8 {was called for.} 36. Bb6 Ne4) 36. dxc6 {[%emt 0:00:31] Black must
now prevent c7.} (36. Rxc6 Ne4 37. Qe1 Nf6 $11) 36... Qc7 {[%emt 0:00:10]} 37.
b5 {[%emt 0:00:46]} Rb8 {[%emt 0:00:00]} 38. Bb7 {[%emt 0:02:16] This bishop
pair is nice.} (38. g5 $142 Ne8 39. Qb4) 38... Ne4 {[%emt 0:00:51]} (38... Rxb7
39. cxb7 Qxb7) 39. b6 {[%emt 0:00:00]} ({Stronger than} 39. Qh2 Qa5 40. c7
Qxb5+ 41. Ka1 Qxb7 $15) 39... Rxb7 {[%emt 0:01:28] [#]} 40. cxb7 $1 {[%emt 0:
00:12]} Qxb7 {[%emt 0:00:08]} 41. Qa5 {[%emt 0:05:34]} Nf6 {[%emt 0:06:48]} 42.
Qa7 {[%emt 0:00:59]} Qg2+ {[%emt 0:00:00]} 43. Ka1 {[%emt 0:00:22] Intending
Bh6 and mate.} Kxg7 {[%emt 0:01:19]} 44. b7 $2 {[%emt 0:06:22]} (44. g5 Ng4 45.
b7 Nxe3 46. b8=Q Nc2+ 47. Rxc2 $1 Qxc2 48. Qac7 (48. Qe7 Qa4+ 49. Kb2 Qd4+ 50.
Kb3 Qd1+ 51. Ka2 Qa4+ 52. Kb2 Qd4+ 53. Kb3 Qd1+ 54. Ka2 Qa4+ 55. Kb2 $11) 48...
Qd1+ 49. Ka2) 44... Nd7 {[%emt 0:00:47]} 45. b8=Q {[%emt 0:00:37]} Nxb8 {
[%emt 0:00:26]} 46. Qxb8 {[%emt 0:00:01]} Qxg3 {[%emt 0:00:16]} 47. Qb6 {
[%emt 0:00:20]} Qxg4 {[%emt 0:00:00]} (47... Qf3 $142 48. Rc3 Qe4) 48. Qxd6 {
[%emt 0:00:52]} Qa4+ {[%emt 0:00:00]} 49. Kb2 {[%emt 0:00:06]} Qb5+ {[%emt 0:
00:18]} 50. Kc3 {[%emt 0:00:23]} Qa5+ {[%emt 0:01:04]} 51. Qb4 {[%emt 0:00:33]}
Qd5 {[%emt 0:00:39]} 52. Kb2 {[%emt 0:00:22]} Qg2+ {[%emt 0:01:07]} 53. Bd2 {
[%emt 0:00:16]} h5 {[%emt 0:00:00]} 54. Rc8 {[%emt 0:04:59] And now Qf8+ would
win.} Kh7 {[%emt 0:00:22]} 55. Rd8 {[%emt 0:01:10]} Qf1 {[%emt 0:02:35]} 56.
Qc5 {[%emt 0:05:01]} ({But not} 56. Qf8 Qb5+ 57. Qb4 Qf1 $18) 56... Qb1+ {
[%emt 0:01:16]} 57. Ka3 {[%emt 0:00:00]} Qa1+ {[%emt 0:01:12]} 58. Kb4 {
[%emt 0:00:20] Threatens to win with Qe3.} Qb1+ {[%emt 0:00:25]} 59. Ka5 {
[%emt 0:00:19]} Qa2+ {[%emt 0:03:17]} 60. Kb6 {[%emt 0:00:28]} Qb3+ {[%emt 0:
01:06]} (60... Qe6+ $142 61. Rd6 Qe7) 61. Bb4 {[%emt 0:01:45] Qf8 would kill
now.} Be4 {[%emt 0:02:05]} (61... Bf5 $142 62. Rd5 Qc2) 62. Kc7 {[%emt 0:04:09]
[%cal Yc5e5]} Qa4 {[%emt 0:00:40]} 63. Kd6 {[%emt 0:01:49]} (63. Bc3 $142 Qa6 {
[#]} 64. Rh8+ $3 Kg6 65. Qg1+ Kf6 66. Qf2+ Kg7 67. Bxe5+ f6 68. Bxf6+ $1 Qxf6
69. Rg8+ $3 Kxg8 70. Qxf6) 63... Qa6+ {[%emt 0:00:38]} 64. Kd7 {[%emt 0:01:55]}
Qe6+ {[%emt 0:02:06]} 65. Kc7 {[%emt 0:00:02]} Qa6 {[%emt 0:00:16]} 66. Qb6 $2
{[%emt 0:01:01]} (66. Rb8) 66... Qc4+ $2 {[%emt 0:00:10]} (66... Qxb6+ {
keeps fighting.} 67. Kxb6 h4) 67. Kb8 {[%emt 0:00:12]} Qa2 {[%emt 0:01:20]} 68.
Ba5 {[%emt 0:00:08][%cal Yb6f6] Threatening mate with Qf6!} Qb1 {[%emt 0:03:10]
} 69. Qxb1 {[%emt 0:01:02]} Bxb1 {[%emt 0:00:05]} 70. Be1 {[%emt 0:00:14]} Kg6
{[%emt 0:00:20]} 71. Kc7 {[%emt 0:00:04]} Ba2 {[%emt 0:00:56]} 72. Kd6 {
[%emt 0:00:45]} f6 {[%emt 0:01:17]} 73. Bh4 {[%emt 0:00:55]} Bf7 {[%emt 0:00:
00]} (73... Kf5 $18 74. Rf8 Kg4 75. Bxf6 e4) 74. Ke7 {[%emt 0:00:27]} (74. Rf8
$142 Kg7 75. Ke7 Bg6 76. Bxf6+ Kh6 77. Rh8+ Bh7 78. Kf7 h4 79. Bxe5) 74... f5 {
[%emt 0:00:38]} (74... Bc4 $18 75. Kd6 Kf5) 75. Rd6+ {[%emt 0:00:04] Weighted
Error Value: White=0.30/Black=0.34} 1-0

[Event "44th Chess Olympiad Open 2022"]
[Site "Chennai"]
[Date "2022.08.03"]
[Round "6.49"]
[White "Oatlhotse, Providence"]
[Black "Lim, Zhuo Ren"]
[Result "1/2-1/2"]
[WhiteElo "2204"]
[BlackElo "2318"]
[Annotator "TA"]
[PlyCount "157"]
[EventDate "2022.??.??"]
[TimeControl "60"]

{[%evp 14,157,-13,-21,-23,-32,-16,-88,-35,-53,-27,-67,-60,-55,-38,-60,-29,-104,
-60,-90,-94,-80,-84,-87,-82,-117,0,0,38,38,37,33,38,35,45,52,31,55,33,40,34,35,
49,41,109,112,98,91,90,85,95,86,77,77,93,101,117,119,119,126,112,35,65,64,64,
24,30,16,19,0,36,0,19,0,0,3,0,0,0,0,0,0,3,0,8,8,10,10,53,21,20,20,20,20,22,16,
20,0,0,0,20,0,0,0,72,0,0,0,0,0,0,0,0,-11,-11,-15,-15,-15,-15,-16,-16,-16,-15,
-15,-15,-15,-15,-15,-15,-15,0,-15,-15,-15,-15,-15,-15,-15,-12,-12,-12,-12,0,0,
0,0]} 1. Nf3 {[%emt 0:00:12]} c5 {[%emt 0:00:23]} 2. c4 {[%emt 0:00:10]} Nc6 {
[%emt 0:00:22]} 3. d4 {[%emt 0:00:02]} cxd4 {[%emt 0:00:12]} 4. Nxd4 {[%emt 0:
00:00]} g6 {[%emt 0:00:27]} 5. g3 {[%emt 0:00:15]} Bg7 {[%emt 0:00:22]} 6. Nc2
{[%emt 0:00:04]} d6 $1 {[%emt 0:00:56] 6...d6 is better than 6...Nf6.} 7. Bg2 {
[%emt 0:00:06]} Be6 {[%emt 0:01:48]} 8. Ne3 {[%emt 0:01:49]} Rc8 {[%emt 0:00:
00] A30: Symmetrical English: Double Fianchetto and Hedgehog.} 9. O-O {[%emt 0:
00:00]} h5 {[%emt 0:00:14][%cal Yh7h5,Yh5h4] [#]} 10. Nc3 $146 {[%emt 0:03:44]}
(10. h4 $11) ({Predecessor:} 10. h4 Qd7 11. Nc3 Ne5 12. Qb3 b6 13. Ncd5 Nf6 14.
Bd2 O-O 15. Rac1 Nfg4 16. Nxg4 Bxg4 {0-1 (44) Khademalsharieh, S (2494)
-Muzychuk,A (2535) Chess.com INT 2020}) 10... Bxc3 {[%emt 0:01:43]} (10... h4
$17) 11. bxc3 $15 {[%emt 0:00:06]} h4 {[%emt 0:00:46]} 12. c5 {[%emt 0:04:27]}
dxc5 {[%emt 0:00:54]} 13. Qa4 {[%emt 0:03:28]} Nf6 {[%emt 0:00:00]} 14. Rb1 {
[%emt 0:11:51]} Qc7 {[%emt 0:01:34]} 15. c4 {[%emt 0:05:28]} (15. g4 $11) 15...
Bd7 {[%emt 0:01:46]} 16. Bb2 {[%emt 0:03:33]} Nd4 {[%emt 0:03:44]} 17. Qd1 {
[%emt 0:02:47]} hxg3 {[%emt 0:01:40]} 18. hxg3 {[%emt 0:19:11]} Qe5 {[%emt 0:
01:00] And now ...Qh5 would win.} 19. Re1 {[%emt 0:03:18]} Bc6 {[%emt 0:01:20]}
(19... Rd8 $17 {Threatens to win with ...Bc6.} 20. Bxd4 cxd4) 20. Nd5 $1 $11 {
[%emt 0:21:35]} Nxd5 {[%emt 0:25:52]} 21. cxd5 {[%emt 0:02:36]} Bxd5 {[%emt 0:
00:02]} 22. Bxd4 {[%emt 0:00:20]} cxd4 {[%emt 0:00:24]} 23. Rb5 {[%emt 0:00:34]
} e6 {[%emt 0:04:17] ...Rc3 is the strong threat.} 24. e4 $1 {[%emt 0:00:57]} (
24. Bxd5 exd5 25. e4 Rc3 $15) 24... dxe3 $1 {[%emt 0:01:39]} 25. Rxd5 {[%emt 0:
05:51]} (25. Rxe3 Bxg2 $1 26. Rexe5 Rh1+ 27. Kxg2 Rxd1 28. Rxb7 Rd7 29. Rxd7
Kxd7 $17) 25... exf2+ {[%emt 0:00:15]} (25... exd5 $2 26. Rxe3 Qxe3 27. fxe3
$18) 26. Kxf2 {[%emt 0:00:04] Chess con chili.} Qb2+ {[%emt 0:01:20]} 27. Rd2 {
[%emt 0:00:22]} Qb6+ {[%emt 0:00:12]} 28. Kf1 {[%emt 0:01:06]} Rc5 {[%emt 0:01:
31]} (28... O-O $14) 29. Qa4+ $16 {[%emt 0:00:00]} Kf8 {[%emt 0:00:19]} 30. Qd4
{[%emt 0:01:20]} Rf5+ {[%emt 0:00:49]} 31. Kg1 $1 {[%emt 0:00:06]} Qxd4+ {
[%emt 0:01:15]} 32. Rxd4 {[%emt 0:00:02]} Ra5 {[%emt 0:00:13]} 33. Re2 {
[%emt 0:00:40]} b6 {[%emt 0:00:09]} 34. Rd7 {[%emt 0:00:00]} Rhh5 {[%emt 0:00:
45]} 35. g4 $1 {[%emt 0:00:56]} Rh7 {[%emt 0:06:58]} 36. Rc2 {[%emt 0:02:27]}
Ra4 {[%emt 0:02:35]} 37. Rc8+ {[%emt 0:00:55]} (37. Bf3 $1 $16) 37... Kg7 $14 {
[%emt 0:00:01]} 38. Rcc7 {[%emt 0:00:04] White is more active.} Kf6 {[%emt 0:
00:32]} 39. Rxa7 {[%emt 0:00:35]} Rxg4 {[%emt 0:00:00]} 40. Rd3 {[%emt 0:01:00]
} Rh5 {[%emt 0:02:07]} 41. Rdd7 {[%emt 0:05:59]} Rh7 {[%emt 0:00:11]} 42. Rd3 {
[%emt 0:08:51]} Rh5 {[%emt 0:00:21]} 43. Rb3 {[%emt 0:00:41]} Ra5 {[%emt 0:02:
03]} 44. Rf3+ {[%emt 0:03:13]} Rf5 {[%emt 0:00:00] Hoping for ...Rxf3.} 45. Kf2
{[%emt 0:05:11]} Rb4 {[%emt 0:01:53]} 46. Rxf5+ {[%emt 0:02:05]} gxf5 $11 {
[%emt 0:00:58] Endgame KRB-KR} 47. Bc6 {[%emt 0:00:02]} Rb2+ {[%emt 0:04:51]}
48. Ke1 {[%emt 0:02:33]} Ke5 {[%emt 0:03:12]} 49. a4 {[%emt 0:00:14]} f6 {
[%emt 0:00:19]} 50. Rb7 {[%emt 0:00:00]} Kd6 {[%emt 0:01:04]} 51. Bb5 {[%emt 0:
02:01]} (51. Be8 $5 {[%cal Ra4a5]}) 51... Kc5 {[%emt 0:00:03]} 52. Rc7+ {
[%emt 0:00:27]} Kd4 $1 {[%emt 0:00:18]} 53. Rc4+ {[%emt 0:02:22]} Ke3 $1 {
[%emt 0:00:25]} 54. Rc3+ {[%emt 0:00:12]} Kd4 {[%emt 0:00:07]} 55. Rc4+ {
[%emt 0:01:00]} Ke3 $1 {[%emt 0:00:02]} 56. Rc3+ {[%emt 0:00:06]} Kd4 {[%emt 0:
00:21]} 57. Rc6 {[%emt 0:03:09]} e5 {[%emt 0:00:00]} 58. Rxb6 {[%emt 0:00:50]}
f4 {[%emt 0:01:03] [#]} (58... e4 $11) 59. Rxf6 {[%emt 0:00:24]} (59. Rd6+ $1
$16 Ke4 60. Rd2 (60. Rxf6 Ke3 $11) 60... Rb1+ 61. Rd1) 59... e4 {[%emt 0:00:25]
The position is equal.} 60. Kd1 {[%emt 0:00:52]} f3 {[%emt 0:00:36]} 61. Kc1 {
[%emt 0:00:34]} Ra2 {[%emt 0:03:07]} 62. Kb1 {[%emt 0:00:38]} Rf2 {[%emt 0:00:
26]} 63. Bc6 {[%emt 0:00:28]} e3 {[%emt 0:00:00]} 64. Rf4+ {[%emt 0:00:56]} (
64. Rxf3 {leads to mate.} e2 65. Rxf2 e1=Q+ 66. Kc2 Qxf2+ 67. Kb3 Qd2) ({
But not} 64. Bxf3 $2 {[#]} Rxf3 $1 65. Re6 (65. Rxf3 $2 {too greedy.} e2 $19)
65... Kd3 66. Rd6+ Kc3 $19) 64... Kc5 {[%emt 0:01:06] ( -> ...e2)} 65. Bxf3 {
[%emt 0:00:29]} e2 {[%emt 0:00:27]} 66. Bxe2 {[%emt 0:00:33]} Rxf4 {[%emt 0:00:
12] KR-KB} 67. Bb5 {[%emt 0:00:14]} Rf2 {[%emt 0:00:10]} 68. Kc1 {[%emt 0:00:
32]} Kd4 {[%emt 0:00:08]} 69. Kd1 {[%emt 0:00:22]} Ra2 {[%emt 0:00:09]} 70. Ke1
{[%emt 0:00:25]} Ke3 {[%emt 0:00:00][%cal Ra2a1]} 71. Kd1 {[%emt 0:00:01]} Kd4
{[%emt 0:00:23]} 72. Ke1 {[%emt 0:00:02]} Kc3 {[%emt 0:00:19]} 73. Kd1 {
[%emt 0:00:23]} Rd2+ {[%emt 0:00:00]} 74. Ke1 {[%emt 0:00:01]} Rd4 {[%emt 0:00:
07]} 75. Ke2 {[%emt 0:00:08]} Kb4 {[%emt 0:00:06]} 76. Ke3 {[%emt 0:00:01]} Rd5
{[%emt 0:00:06]} 77. Ke4 {[%emt 0:00:19]} Rxb5 {[%emt 0:00:04]} 78. axb5 {
[%emt 0:00:02] Intending b6 and mate.} Kxb5 {[%emt 0:00:05]} 79. Kd5 {[%emt 0:
00:03] Weighted Error Value: White=0.14 (very precise) /Black=0.11 (very
precise)} 1/2-1/2

[Event "44th Chess Olympiad Open 2022"]
[Site "Chennai"]
[Date "2022.08.03"]
[Round "6.49"]
[White "Poh, Yu Tian"]
[Black "Monnaatsheko, Keletshabile"]
[Result "1-0"]
[WhiteElo "2118"]
[BlackElo "2014"]
[Annotator "NA RC"]
[PlyCount "71"]
[EventDate "2022.??.??"]
[TimeControl "60"]

1. e4 {[%emt 0:00:03]} e6 {[%emt 0:00:09]} 2. d4 {[%emt 0:00:03]} d5 {[%emt 0:
00:00]} 3. Nc3 {[%emt 0:00:03]} Nf6 {[%emt 0:00:24]} 4. Bg5 {[%emt 0:00:03]} h6
{[%emt 0:00:22]} 5. Bxf6 {[%emt 0:00:21]} Qxf6 {[%emt 0:00:03]} 6. exd5 {
[%emt 0:01:19]} Bb4 {[%emt 0:00:04]} 7. dxe6 {[%emt 0:01:12]} Bxe6 {[%emt 0:00:
00]} 8. Nf3 {[%emt 0:08:07]} O-O {[%emt 0:01:22]} 9. Bd3 {[%emt 0:00:44]} Bg4 {
[%emt 0:13:25]} 10. O-O {[%emt 0:01:03]} Rd8 {[%emt 0:01:22]} 11. Ne4 {[%emt 0:
00:00]} Qf4 {[%emt 0:01:06]} 12. c3 {[%emt 0:00:59]} Bf8 {[%emt 0:01:11]} 13.
Qd2 {[%emt 0:01:29]} Qxd2 {[%emt 0:02:29]} 14. Nexd2 {[%emt 0:00:18]} Nd7 {
[%emt 0:02:30]} 15. h3 {[%emt 0:01:25]} Bh5 {[%emt 0:01:03]} 16. Rfe1 {[%emt 0:
00:00]} Bd6 {[%emt 0:07:36]} 17. g3 {[%emt 0:08:27]} c5 {[%emt 0:07:45]} 18.
Kg2 {[%emt 0:03:35]} cxd4 {[%emt 0:02:37]} 19. Nxd4 {[%emt 0:00:17]} Nc5 {
[%emt 0:00:53]} 20. Bc2 {[%emt 0:01:20]} Bf8 {[%emt 0:07:15]} 21. N2f3 {
[%emt 0:08:48]} Rac8 {[%emt 0:07:43]} 22. Ne5 {[%emt 0:02:07]} Bd6 {[%emt 0:00:
00]} 23. Nf5 {[%emt 0:03:35]} Bf8 {[%emt 0:05:47]} 24. g4 {[%emt 0:03:16]} Bg6
{[%emt 0:04:03]} 25. Nxg6 {[%emt 0:00:14]} fxg6 {[%emt 0:00:01]} 26. Nd4 {
[%emt 0:00:31]} g5 {[%emt 0:01:03]} 27. Bf5 {[%emt 0:01:07]} Ra8 {[%emt 0:00:
00]} 28. Re2 {[%emt 0:02:27]} Re8 {[%emt 0:00:53]} 29. Rae1 {[%emt 0:00:26]}
Rxe2 {[%emt 0:00:03]} 30. Rxe2 {[%emt 0:00:03]} Kf7 {[%emt 0:00:50]} 31. Bc2 {
[%emt 0:01:07]} Rc8 {[%emt 0:01:00]} 32. b4 {[%emt 0:03:06]} Na6 {[%emt 0:00:
00]} 33. Bb3+ {[%emt 0:00:32]} Kg6 {[%emt 0:00:13]} 34. Bg8 {[%emt 0:00:47]}
Nc7 {[%emt 0:03:44]} 35. Nb5 {[%emt 0:02:17]} Be7 {[%emt 0:04:17]} 36. Rxe7 {
[%emt 0:00:11]} 1-0

[Event "44th Chess Olympiad Open 2022"]
[Site "Chennai"]
[Date "2022.08.03"]
[Round "6.49"]
[White "Oratile, Kgotlane"]
[Black "Tan, Jun Ying"]
[Result "1/2-1/2"]
[WhiteElo "2024"]
[BlackElo "2191"]
[Annotator "TA"]
[PlyCount "100"]
[EventDate "2022.??.??"]
[TimeControl "60"]

{[%evp 18,100,0,0,7,0,0,0,0,-6,0,-2,-10,-36,-37,-56,-43,-48,-62,-106,-105,-95,
-101,-130,-128,-172,-103,-133,-116,-123,-122,-156,-156,-151,-159,-169,-83,-71,
-72,-160,-158,-162,-149,-164,-122,-129,-115,-123,-106,-162,-172,-165,-167,-172,
-159,-1231,-1236,-1138,-346,-337,-335,-313,-218,-223,-202,-207,-70,-70,-70,-70,
-70,-70,-70,-80,-24,-24,0,0,0,0,0,0,0,-8,0]} 1. e4 {[%emt 0:00:06]} c5 {
[%emt 0:00:12]} 2. Nf3 {[%emt 0:00:16]} Nc6 {[%emt 0:00:03]} 3. d3 {[%emt 0:00:
00]} g6 {[%emt 0:00:13]} 4. g3 {[%emt 0:00:05]} Bg7 {[%emt 0:00:01]} 5. Bg2 {
[%emt 0:00:07]} d6 {[%emt 0:00:18]} 6. O-O {[%emt 0:00:08]} e5 {[%emt 0:00:08]}
7. Nc3 {[%emt 0:00:15]} Nge7 {[%emt 0:00:10]} 8. Nd2 {[%emt 0:00:07]} O-O {
[%emt 0:00:06]} 9. Nc4 {[%emt 0:00:05]} Be6 {[%emt 0:00:06]} 10. Nd5 {[%emt 0:
00:00]} Qd7 {[%emt 0:01:40] B25: Closed Sicilian: 3 g3, lines without early
Be3.} 11. a4 {[%emt 0:00:17]} Bg4 {[%emt 0:01:13]} 12. f3 {[%emt 0:00:46]} Be6
{[%emt 0:00:11]} 13. f4 {[%emt 0:00:07][%cal Yf4f5]} Bg4 {[%emt 0:00:31] [#]
Prevents f5.} 14. Bf3 $146 {[%emt 0:01:25]} ({Predecessor:} 14. Qd2 exf4 15.
Nxe7+ Qxe7 16. Qxf4 Be6 17. Qxd6 Qxd6 18. Nxd6 Nb4 19. c3 Nxd3 20. Rd1 {
½-½ (57) Skoberne,J (2582)-Quparadze,G (2493) Chess.com INT 2019}) 14... Bh3
{[%emt 0:17:47]} 15. Bg2 {[%emt 0:07:19]} Bxg2 {[%emt 0:00:32]} 16. Kxg2 {
[%emt 0:00:27]} Nxd5 {[%emt 0:01:08]} 17. exd5 {[%emt 0:00:06]} Nb4 {[%emt 0:
00:00]} 18. fxe5 {[%emt 0:05:25]} dxe5 {[%emt 0:01:28][%cal Yd6e5,Ye5e4]} 19.
d6 {[%emt 0:02:45]} Qc6+ $1 {[%emt 0:01:14]} 20. Kg1 {[%emt 0:04:44]} e4 $1 {
[%emt 0:00:34]} 21. Be3 {[%emt 0:02:03]} b6 {[%emt 0:11:10]} (21... Rae8 $19
22. c3 Nxd3) 22. Rc1 {[%emt 0:32:04]} Qxa4 {[%emt 0:10:26]} 23. dxe4 {[%emt 0:
00:39]} Na2 {[%emt 0:01:09][%csl Yc1,Yc4]} 24. b3 {[%emt 0:03:49]} Qc6 {
[%emt 0:02:35] Threatens to win with ...b5.} 25. Ra1 {[%emt 0:01:36]} Nc3 {
[%emt 0:00:15]} 26. Qf3 {[%emt 0:00:34]} Nxe4 {[%emt 0:04:28]} (26... b5 $19
27. Na5 Qxd6) 27. Nd2 $17 {[%emt 0:03:32]} f5 {[%emt 0:01:04]} 28. Ra4 {
[%emt 0:03:56]} (28. Rad1 $142) 28... Qxd6 {[%emt 0:05:27]} 29. Nxe4 {[%emt 0:
00:00]} fxe4 {[%emt 0:00:04]} 30. Qxe4 {[%emt 0:03:37]} Rxf1+ {[%emt 0:01:05]}
31. Kxf1 {[%emt 0:00:27]} Rf8+ {[%emt 0:02:47]} 32. Kg2 {[%emt 0:05:58]} Qd1
$36 {[%emt 0:02:54][%csl Gf8][%cal Rd1f1] Black is in control.} 33. Qc4+ {
[%emt 0:17:49]} (33. h4 $17 {might work better.}) 33... Kh8 $19 {[%emt 0:00:00]
( -> ...Qf3+)} 34. Qd3 {[%emt 0:00:34]} Qf3+ {[%emt 0:06:57]} 35. Kg1 {[%emt 0:
01:32]} a5 {[%emt 0:01:43]} 36. Rf4 $2 {[%emt 0:00:22]} (36. Re4 $17) 36...
Rxf4 {[%emt 0:00:53]} 37. gxf4 {[%emt 0:00:10] Endgame [#] KQB-KQB} h6 $2 {
[%emt 0:02:09]} (37... Qxe3+ $3 38. Qxe3 Bd4) 38. Qd8+ {[%emt 0:01:06]} Kh7 {
[%emt 0:00:03]} 39. Bf2 {[%emt 0:00:08]} Qg4+ {[%emt 0:06:47]} 40. Kf1 {
[%emt 0:00:23]} Qe6 {[%emt 0:00:33]} 41. Qd3 {[%emt 0:00:00] [#]} Qc6 {[%emt 0:
06:35]} ({Better is} 41... c4 $1 $19 {[%cal Rc4d3]} 42. bxc4 Qg4) 42. f5 $1 $15
{[%emt 0:01:20]} gxf5 {[%emt 0:15:00]} 43. Qxf5+ {[%emt 0:00:09]} Qg6 {[%emt 0:
00:25]} 44. Qxg6+ {[%emt 0:01:10]} Kxg6 {[%emt 0:00:00] KB-KB} 45. Ke2 {
[%emt 0:00:10] [#]} Be5 {[%emt 0:04:35]} (45... Kf5 $1 $17 {And now ...Bd4
would win.} 46. Kd3 Bf6) 46. h3 $1 $11 {[%emt 0:00:18]} b5 {[%emt 0:15:21]
Strongly threatening ...a4.} 47. Bxc5 {[%emt 0:00:56] The position is equal.}
a4 {[%emt 0:02:03]} 48. bxa4 {[%emt 0:01:39]} bxa4 {[%emt 0:00:03] ...Bb2 is
the strong threat.} 49. Ba3 {[%emt 0:00:10] Against Bb2} Kg5 {[%emt 0:01:10]}
50. Kf3 {[%emt 0:00:35]} Kf5 {[%emt 0:03:06] Black had all chances to win.
Weighted Error Value: White=0.28 (precise) /Black=0.34} 1/2-1/2